lending/lending_fUSD_20240112
["ID","MTS","AMOUNT","RATE_DAILY","PERIOD"]
[311333139,1705063910422,-500.0,0.00024784,2]
[311333140,1705063910432,-500.0,0.00024784,2]
[311333141,1705063910442,-500.0,0.00024784,2]
[311333142,1705063910451,-500.0,0.00024784,2]
[311333143,1705063910462,-3508.3,0.00024784,2]
[311333144,1705063910472,-500.0,0.00024784,2]
[311333145,1705063910481,-619.56,0.00024784,2]
[311333146,1705063910491,-500.0,0.00024784,2]
[311333147,1705063910502,-939.84,0.00024784,2]
[311333148,1705063910513,-2401.03,0.00024784,5]
[311333149,1705063910523,-327.82345708,0.00024784,2]
[311333150,1705063910532,-500.0,0.00024784,2]
[311333151,1705063910543,-505.5,0.00024784,2]
[311333152,1705063910554,-500.0,0.00024784,2]
[311333153,1705063910564,-1105.06,0.00024784,2]
[311333154,1705063910574,-522.95,0.00024784,2]
[311333155,1705063910584,-500.0,0.00024784,2]
[311333156,1705063910594,-1354.24,0.00024784,2]
[311333157,1705063910604,-500.0,0.00024784,2]
[311333158,1705063910613,-500.0,0.00024784,2]
[311333159,1705063910623,-500.0,0.00024784,2]
[311333160,1705063910633,-500.0,0.00024784,2]
[311333161,1705063910642,-500.0,0.00024784,2]
[311333162,1705063910652,-500.0,0.00024784,2]
[311333163,1705063910661,-609.76980454,0.00024784,2]
[311333164,1705063910671,-500.0,0.00024784,2]
[311333165,1705063910681,-1368.86,0.00024784,2]
[311333166,1705063910690,-263.25669021,0.00024784,2]
[311333167,1705063910700,-772.0,0.00024784,2]
[311333168,1705063910710,-500.0,0.00024784,2]
[311333169,1705063910719,-500.0,0.00024784,2]
[311333170,1705063910729,-1064.54,0.00024784,2]
[311333171,1705063910738,-705.07,0.00024784,2]
[311333172,1705063910748,-660.22,0.00024784,2]
[311333173,1705063910759,-500.0,0.00024784,2]
[311333174,1705063910769,-608.43,0.00024784,2]
[311333175,1705063910779,-917.47,0.00024784,2]
[311333176,1705063910789,-500.0,0.00024784,2]
[311333177,1705063910799,-1227.15,0.00024784,2]
[311333178,1705063910808,-500.0,0.00024784,2]
[311333179,1705063910818,-500.0,0.00024784,2]
[311333180,1705063910828,-500.0,0.00024784,2]
[311333181,1705063910837,-873.32,0.00024784,2]
[311333182,1705063910846,-3542.34,0.00024784,2]
[311333183,1705063910856,-500.0,0.00024784,2]
[311333184,1705063910865,-2030.8,0.00024784,2]
[311333185,1705063910875,-804.67,0.00024784,2]
[311333186,1705063910884,-500.0,0.00024784,2]
[311333187,1705063910894,-751.35,0.00024784,2]
[311333188,1705063910904,-500.0,0.00024784,2]
[311333189,1705063910913,-681.41,0.00024784,2]
[311333190,1705063910923,-1040.93,0.00024784,2]
[311333191,1705063910933,-550.77,0.00024784,2]
[311333192,1705063910943,-568.41,0.00024784,2]
[311333193,1705063910952,-500.0,0.00024784,2]
[311333194,1705063910962,-500.0,0.00024784,2]
[311333195,1705063910972,-500.0,0.00024784,2]
[311333196,1705063910982,-324.65446175,0.00024784,2]
[311333197,1705063910991,-500.0,0.00024784,2]
[311333198,1705063911000,-500.0,0.00024784,2]
[311333199,1705063911010,-837.58,0.00024784,2]
[311333200,1705063911021,-500.0,0.00024784,2]
[311333201,1705063911031,-500.0,0.00024784,2]
[311333202,1705063911040,-500.0,0.00024784,2]
[311333203,1705063911049,-1259.47,0.00024784,2]
[311333204,1705063911058,-645.64,0.00024784,2]
[311333205,1705063911068,-500.0,0.00024784,2]
[311333206,1705063911077,-4639.19,0.00024784,2]
[311333207,1705063911087,-500.0,0.00024784,2]
[311333208,1705063911096,-500.0,0.00024784,2]
[311333209,1705063911105,-528.46,0.00024784,2]
[311333210,1705063911115,-843.77,0.00024784,2]
[311333211,1705063911125,-500.0,0.00024784,2]
[311333212,1705063911135,-500.0,0.00024784,2]
[311333213,1705063911145,-500.0,0.00024784,2]
[311333214,1705063911154,-500.0,0.00024784,2]
[311333215,1705063911163,-500.0,0.00024784,2]
[311333216,1705063911173,-521.61,0.00024784,2]
[311333217,1705063911185,-500.0,0.00024784,2]
[311333218,1705063911195,-500.0,0.00024784,2]
[311333219,1705063911205,-500.0,0.00024784,2]
[311333220,1705063911214,-500.0,0.00024784,2]
[311333221,1705063911224,-500.0,0.00024784,2]
[311333222,1705063911233,-500.0,0.00024784,2]
[311333223,1705063911243,-625.33,0.00024784,2]
[311333224,1705063911253,-1634.05,0.00024784,2]
[311333225,1705063911262,-500.0,0.00024784,2]
[311333226,1705063911273,-709.97,0.00024784,2]
[311333227,1705063911283,-835.12,0.00024784,2]
[311333228,1705063911293,-1018.72,0.00024784,2]
[311333229,1705063911302,-500.0,0.00024784,2]
[311333230,1705063911312,-500.0,0.00024784,2]
[311333231,1705063911323,-1257.65,0.00024784,2]
[311333232,1705063911333,-1312.63,0.00024784,2]
[311333233,1705063911343,-511.76,0.00024784,2]
[311333234,1705063911352,-500.0,0.00024784,2]
[311333235,1705063911363,-500.0,0.00024784,2]
[311333236,1705063911372,-500.0,0.00024784,2]
[311333237,1705063911382,-500.0,0.00024784,2]
[311333238,1705063911393,-500.0,0.00024784,2]
[311333239,1705063911402,-500.0,0.00024784,2]
[311333240,1705063911413,-539.08,0.00024784,2]
[311333241,1705063911422,-500.0,0.00024784,2]
[311333242,1705063911432,-1320.71,0.00024784,2]
[311333243,1705063911441,-367.10395441,0.00024784,2]
[311333244,1705063911451,-969.0,0.00024784,2]
[311333245,1705063911461,-736.76,0.00024784,2]
[311333246,1705063911471,-500.0,0.00024784,2]
[311333247,1705063911480,-500.0,0.00024784,2]
[311333248,1705063911490,-500.0,0.00024784,2]
[311333249,1705063911499,-1026.07,0.00024784,2]
[311333250,1705063911509,-913.29,0.00024784,2]
[311333251,1705063911519,-500.0,0.00024784,2]
[311333252,1705063911529,-721.94,0.00024784,2]
[311333253,1705063911538,-500.0,0.00024786,2]
[311333254,1705063911548,-500.0,0.00024827,2]
[311333255,1705063911558,-200.0,0.00024827,2]
[311333256,1705063911567,-1037.07612288,0.0002483,2]
[311333257,1705063911578,-162.16,0.00024946,2]
[311333258,1705063911587,-11328.78311781,0.00024988,2]
[311333259,1705063911597,-4223.75,0.00024991,2]
[311333260,1705063911607,-500.0,0.00024991,2]
[311333261,1705063911617,-1122.89,0.00024991,2]
[311333262,1705063911627,-945.58,0.00024991,2]
[311333263,1705063911637,-620.52,0.00024991,2]
[311333264,1705063911647,-703.0,0.00024991,2]
[311333265,1705063911657,-1331.16,0.00024991,2]
[311333266,1705063911667,-3318.66,0.00024991,2]
[311333267,1705063911676,-201.78427875,0.00025,2]
[311333268,1705063911685,-1017.41142143,0.00025,2]
[311333269,1705063911695,-167.16432493,0.00025,2]
[311333270,1705063911705,-1582.37478172,0.00025,2]
[311333271,1705063911714,-1247.21446884,0.00025,2]
[311333272,1705063911724,-430.58883532,0.00025,2]
[311333273,1705063911733,-2091.27406584,0.00025,2]
[311333274,1705063911743,-550.0,0.00025,3]
[311333275,1705063911753,-5193.5098489,0.00025023,2]
[311333276,1705063911763,-148278.4649394,0.0002504,2]
[311333277,1705063911774,-401.15,0.00025048,2]
[311333278,1705063911783,-401.15,0.00025048,2]
[311333279,1705063911796,-401.15,0.00025048,2]
[311333280,1705063911805,-401.15,0.00025048,2]
[311333281,1705063911815,-802.08,0.00025048,2]
[311333282,1705063911825,-939.95,0.00025048,2]
[311333284,1705063911835,-939.95,0.00025048,2]
[311333285,1705063911845,-939.95,0.00025048,2]
[311333286,1705063911854,-939.95,0.00025048,2]
[311333287,1705063911864,-197.53074025,0.00025057,2]
[311333288,1705063911873,-500.0,0.00025057,2]
[311333289,1705063911885,-500.0,0.00025057,2]
[311333290,1705063911896,-500.0,0.00025057,2]
[311333291,1705063911906,-500.0,0.00025057,2]
[311333292,1705063911915,-500.0,0.00025057,2]
[311333293,1705063911925,-500.0,0.00025057,2]
[311333294,1705063911934,-1074.41,0.00025057,2]
[311333295,1705063911943,-195.11143299,0.00025057,2]
[311333296,1705063911953,-500.0,0.00025057,2]
[311333297,1705063911962,-4313.59,0.00025057,5]
[311333298,1705063911971,-500.0,0.00025057,2]
[311333299,1705063911980,-2141.96,0.00025057,2]
[311333300,1705063911989,-763.76,0.00025057,2]
[311333301,1705063911999,-13400.37,0.00025057,2]
[311333302,1705063912010,-4452.05,0.00025057,2]
[311333303,1705063912020,-500.0,0.00025057,2]
[311333304,1705063912030,-500.0,0.00025057,2]
[311333305,1705063912039,-500.0,0.00025057,2]
[311333306,1705063912050,-5995.38,0.00025057,2]
[311333307,1705063912060,-500.0,0.00025057,2]
[311333308,1705063912070,-500.0,0.00025057,2]
[311333309,1705063912080,-966.26,0.00025057,2]
[311333310,1705063912089,-500.0,0.00025057,2]
[311333311,1705063912098,-660.56,0.00025057,2]
[311333312,1705063912108,-500.0,0.00025057,2]
[311333313,1705063912118,-500.0,0.00025057,2]
[311333314,1705063912127,-568.04,0.00025057,2]
[311333315,1705063912137,-1008.99,0.00025057,2]
[311333316,1705063912146,-615.37,0.00025057,2]
[311333317,1705063912155,-797.96,0.00025057,2]
[311333318,1705063912167,-500.0,0.00025057,2]
[311333319,1705063912179,-1371.29,0.00025057,2]
[311333320,1705063912189,-686.32,0.00025057,2]
[311333321,1705063912199,-500.0,0.00025057,2]
[311333322,1705063912208,-500.0,0.00025057,2]
[311333323,1705063912219,-3981.87,0.00025057,2]
[311333324,1705063912229,-584.53,0.00025057,2]
[311333325,1705063912239,-500.0,0.00025057,2]
[311333326,1705063912248,-610.53,0.00025057,2]
[311333327,1705063912258,-766.02,0.00025057,2]
[311333328,1705063912268,-500.0,0.00025057,2]
[311333329,1705063912277,-500.0,0.00025057,2]
[311333330,1705063912286,-621.74,0.00025057,2]
[311333331,1705063912295,-500.0,0.00025057,2]
[311333332,1705063912305,-2752.63,0.00025057,2]
[311333333,1705063912314,-1378.37,0.00025057,2]
[311333334,1705063912323,-500.0,0.00025057,2]
[311333335,1705063912333,-922.86,0.00025057,2]
[311333336,1705063912343,-500.0,0.00025057,2]
[311333337,1705063912352,-500.0,0.00025057,2]
[311333338,1705063912361,-500.0,0.00025057,2]
[311333339,1705063912371,-712.79,0.00025057,2]
[311333340,1705063912380,-624.87,0.00025057,2]
[311333341,1705063912390,-811.47,0.00025057,2]
[311333342,1705063912399,-500.0,0.00025057,2]
[311333343,1705063912408,-500.0,0.00025057,2]
[311333344,1705063912418,-500.0,0.00025057,2]
[311333345,1705063912427,-6331.44,0.00025057,2]
[311333346,1705063912436,-995.86,0.00025057,2]
[311333347,1705063912445,-652.82,0.00025057,2]
[311333348,1705063912454,-6343.23,0.00025057,2]
[311333349,1705063912463,-1936.38,0.00025057,2]
[311333350,1705063912472,-500.0,0.00025057,2]
[311333351,1705063912482,-538.63,0.00025057,2]
[311333352,1705063912492,-530.12,0.00025057,2]
[311333353,1705063912502,-905.93,0.00025057,2]
[311333354,1705063912512,-500.0,0.00025057,2]
[311333355,1705063912522,-500.0,0.00025057,2]
[311333356,1705063912532,-500.0,0.00025057,2]
[311333357,1705063912541,-500.0,0.00025057,2]
[311333358,1705063912551,-1330.98,0.00025057,2]
[311333359,1705063912561,-584.23,0.00025057,2]
[311333360,1705063912570,-1834.87,0.00025057,2]
[311333361,1705063912580,-500.0,0.00025057,2]
[311333362,1705063912589,-2275.08,0.00025057,2]
[311333363,1705063912598,-3572.07,0.00025057,2]
[311333364,1705063912607,-558.34,0.00025057,2]
[311333365,1705063912616,-500.0,0.00025057,2]
[311333366,1705063912625,-1688.4,0.00025057,2]
[311333367,1705063912635,-1346.26,0.00025057,2]
[311333368,1705063912644,-1004.34,0.00025057,2]
[311333369,1705063912654,-613.34174787,0.00025057,2]
[311333370,1705063912663,-500.0,0.00025057,2]
[311333371,1705063912672,-598.68,0.00025057,2]
[311333372,1705063912681,-929.29,0.00025057,2]
[311333373,1705063912690,-500.0,0.00025057,2]
[311333374,1705063912699,-1187.5,0.00025057,2]
[311333375,1705063912708,-500.0,0.00025057,2]
[311333376,1705063912718,-500.0,0.00025057,2]
[311333377,1705063912727,-937.32,0.00025057,2]
[311333378,1705063912737,-507.51,0.00025057,2]
[311333379,1705063912746,-753.23,0.00025057,2]
[311333380,1705063912755,-396.00486809,0.00025057,2]
[311333381,1705063912765,-500.0,0.00025058,2]
[311333382,1705063912775,-500.0,0.00025058,2]
[311333383,1705063912785,-500.0,0.00025058,2]
[311333384,1705063912794,-410.8266148,0.00025058,2]
[311333385,1705063912803,-500.0,0.00025058,2]
[311333386,1705063912812,-500.0,0.00025058,2]
[311333387,1705063912821,-522.02,0.00025058,2]
[311333388,1705063912830,-500.0,0.00025058,2]
[311333389,1705063912839,-405.43891443,0.00025058,2]
[311333390,1705063912848,-500.0,0.00025058,2]
[311333391,1705063912856,-500.0,0.00025058,2]
[311333392,1705063912867,-500.0,0.00025058,2]
[311333393,1705063912876,-444.96401602,0.00025058,2]
[311333394,1705063912885,-403.69979062,0.00025058,2]
[311333395,1705063912895,-500.0,0.00025058,2]
[311333396,1705063912904,-500.0,0.00025058,2]
[311333397,1705063912914,-644.77004014,0.00025058,2]
[311333398,1705063912923,-406.09475682,0.00025058,2]
[311333399,1705063912932,-500.0,0.00025058,2]
[311333400,1705063912941,-2353.43,0.00025058,2]
[311333401,1705063912951,-500.0,0.00025058,2]
[311333402,1705063912960,-500.0,0.00025058,2]
[311333403,1705063912970,-500.0,0.00025058,2]
[311333404,1705063912979,-500.0,0.00025058,2]
[311333405,1705063912988,-500.0,0.00025058,2]
[311333406,1705063912997,-260.7755519,0.00025058,2]
[311333407,1705063913006,-500.0,0.00025058,2]
[311333408,1705063913015,-500.0,0.00025058,2]
[311333409,1705063913027,-500.0,0.00025058,2]
[311333410,1705063913036,-500.0,0.00025058,2]
[311333411,1705063913045,-500.0,0.00025058,2]
[311333412,1705063913054,-500.0,0.00025058,2]
[311333413,1705063913064,-762.84,0.00025058,2]
[311333414,1705063913234,-349.30657094,0.00025058,2]
[311333415,1705063913245,-759.51,0.00025058,2]
[311333416,1705063913254,-500.0,0.00025058,2]
[311333417,1705063913264,-500.0,0.00025058,2]
[311333418,1705063913276,-500.0,0.00025058,2]
[311333419,1705063913285,-500.0,0.00025058,2]
[311333420,1705063913294,-500.0,0.00025058,2]
[311333421,1705063913304,-500.0,0.00025058,2]
[311333422,1705063913313,-500.0,0.00025058,2]
[311333423,1705063913322,-500.0,0.00025058,2]
[311333424,1705063913331,-356.81570307,0.00025058,2]
[311333425,1705063913340,-500.0,0.00025058,2]
[311333426,1705063913349,-500.0,0.00025058,2]
[311333427,1705063913358,-500.0,0.00025058,2]
[311333428,1705063913368,-500.0,0.00025058,2]
[311333429,1705063913378,-500.0,0.00025058,2]
[311333430,1705063913388,-500.0,0.00025058,2]
[311333431,1705063913397,-500.0,0.00025058,2]
[311333432,1705063913407,-500.0,0.00025058,2]
[311333433,1705063913416,-500.0,0.00025058,2]
[311333434,1705063913426,-500.0,0.00025058,2]
[311333435,1705063913436,-500.0,0.00025058,2]
[311333436,1705063913445,-500.0,0.00025058,2]
[311333437,1705063913455,-500.0,0.00025058,2]
[311333438,1705063913464,-538.07,0.00025058,2]
[311333439,1705063913473,-614.69302115,0.00025058,2]
[311333440,1705063913483,-654.77,0.00025058,2]
[311333441,1705063913492,-500.0,0.00025058,2]
[311333442,1705063913501,-500.0,0.00025058,2]
[311333443,1705063913510,-500.0,0.00025058,2]
[311333444,1705063913519,-565.42936338,0.00025058,2]
[311333445,1705063913529,-500.0,0.00025058,2]
[311333446,1705063913538,-500.0,0.00025058,2]
[311333447,1705063913548,-500.0,0.00025058,2]
[311333448,1705063913558,-500.0,0.00025058,2]
[311333449,1705063913568,-500.0,0.00025058,2]
[311333450,1705063913577,-405.87472129,0.00025058,2]
[311333451,1705063913586,-500.0,0.00025058,2]
[311333452,1705063913595,-535.86,0.00025058,2]
[311333453,1705063913604,-500.0,0.00025058,2]
[311333454,1705063913613,-500.0,0.00025058,2]
[311333455,1705063913622,-2642.46,0.00025058,2]
[311333456,1705063913631,-950.9,0.00025058,2]
[311333457,1705063913640,-576.55749494,0.00025058,2]
[311333458,1705063913650,-500.0,0.00025058,2]
[311333459,1705063913659,-500.0,0.00025058,2]
[311333460,1705063913668,-500.0,0.00025058,2]
[311333461,1705063913677,-536.71,0.00025058,2]
[311333462,1705063913686,-500.0,0.00025058,2]
[311333463,1705063913695,-500.0,0.00025058,2]
[311333464,1705063913705,-500.0,0.00025058,2]
[311333465,1705063913714,-500.0,0.00025058,2]
[311333466,1705063913723,-500.0,0.00025058,2]
[311333467,1705063913731,-500.0,0.00025058,2]
[311333468,1705063913741,-500.0,0.00025058,2]
[311333469,1705063913750,-693.32,0.00025058,2]
[311333470,1705063913759,-500.0,0.00025058,2]
[311333471,1705063913770,-500.0,0.00025058,2]
[311333472,1705063913778,-579.87124581,0.00025058,2]
[311333473,1705063913788,-500.0,0.00025058,2]
[311333474,1705063913797,-568.04,0.00025058,2]
[311333475,1705063913806,-500.0,0.00025058,2]
[311333476,1705063913816,-500.0,0.00025058,2]
[311333477,1705063913825,-500.0,0.00025058,2]
[311333478,1705063913835,-500.0,0.00025058,2]
[311333479,1705063913844,-500.0,0.00025058,2]
[311333480,1705063913853,-500.0,0.00025058,2]
[311333481,1705063913863,-500.0,0.00025058,2]
[311333482,1705063913872,-500.0,0.00025058,2]
[311333483,1705063913881,-500.0,0.00025058,2]
[311333484,1705063913891,-500.0,0.00025058,2]
[311333485,1705063913900,-500.0,0.00025058,2]
[311333486,1705063913909,-500.0,0.00025058,2]
[311333487,1705063913918,-500.0,0.00025058,2]
[311333488,1705063913927,-500.0,0.00025058,2]
[311333489,1705063913937,-500.0,0.00025058,2]
[311333490,1705063913946,-500.0,0.00025058,2]
[311333491,1705063913955,-500.0,0.00025058,2]
[311333492,1705063913964,-500.0,0.00025058,2]
[311333493,1705063913974,-603.25,0.00025058,2]
[311333494,1705063913984,-500.0,0.00025058,2]
[311333495,1705063913995,-500.0,0.00025058,2]
[311333496,1705063914005,-500.0,0.00025058,2]
[311333497,1705063914015,-500.0,0.00025058,2]
[311333498,1705063914025,-500.0,0.00025058,2]
[311333499,1705063914034,-500.0,0.00025058,2]
[311333500,1705063914044,-500.0,0.00025058,2]
[311333501,1705063914053,-500.0,0.00025058,2]
[311333502,1705063914062,-500.0,0.00025058,2]
[311333503,1705063914071,-500.0,0.00025058,2]
[311333504,1705063914080,-500.0,0.00025058,2]
[311333505,1705063914089,-500.0,0.00025058,2]
[311333506,1705063914098,-500.0,0.00025058,2]
[311333507,1705063914108,-500.0,0.00025058,2]
[311333508,1705063914117,-500.0,0.00025058,2]
[311333509,1705063914126,-819.21,0.00025058,2]
[311333510,1705063914135,-500.0,0.00025058,2]
[311333511,1705063914145,-500.0,0.00025058,2]
[311333512,1705063914154,-500.0,0.00025058,2]
[311333513,1705063914163,-500.0,0.00025058,2]
[311333514,1705063914172,-500.0,0.00025058,2]
[311333515,1705063914185,-625.04,0.00025058,2]
[311333516,1705063914194,-584.87,0.00025058,2]
[311333517,1705063914203,-500.0,0.00025058,2]
[311333518,1705063914213,-526.38,0.00025058,2]
[311333519,1705063914222,-500.0,0.00025058,2]
[311333520,1705063914232,-550.56,0.00025058,2]
[311333521,1705063914242,-500.0,0.00025058,2]
[311333522,1705063914251,-500.0,0.00025058,2]
[311333523,1705063914263,-500.0,0.00025058,2]
[311333524,1705063914272,-500.0,0.00025058,2]
[311333525,1705063914281,-500.0,0.00025058,2]
[311333526,1705063914291,-500.0,0.00025058,2]
[311333527,1705063914301,-500.0,0.00025058,2]
[311333528,1705063914310,-476.81325718,0.00025058,2]
[311333529,1705063914771,-147.76674282,0.00025058,2]
[311333530,1705063914781,-534.74,0.00025058,2]
[311333531,1705063914790,-500.0,0.00025058,2]
[311333532,1705063914799,-500.0,0.00025058,2]
[311333533,1705063914808,-500.0,0.00025058,2]
[311333534,1705063914817,-745.45,0.00025058,2]
[311333535,1705063914826,-95.12547239,0.00025058,2]
[311333536,1705063914888,-500.0,0.00022591,2]
[311333537,1705063914898,-404.87452761,0.00025058,2]
[311333538,1705063914907,-432.98683671,0.00025058,2]
[311333539,1705063914924,-67.01316329,0.00025058,2]
[311333540,1705063914932,-500.0,0.00025058,2]
[311333541,1705063914941,-595.28,0.00025058,2]
[311333542,1705063914951,-526.79,0.00025058,2]
[311333543,1705063914961,-500.0,0.00025058,2]
[311333544,1705063914970,-500.0,0.00025058,2]
[311333545,1705063914979,-500.0,0.00025058,2]
[311333546,1705063914988,-500.0,0.00025058,2]
[311333547,1705063914998,-500.0,0.00025058,2]
[311333548,1705063915008,-627.56,0.00025058,2]
[311333549,1705063915019,-500.0,0.00025058,2]
[311333550,1705063915028,-500.0,0.00025058,2]
[311333551,1705063915037,-372.37191099,0.00025058,2]
[311333552,1705063915046,-503.09,0.00025058,2]
[311333553,1705063915055,-500.0,0.00025058,2]
[311333554,1705063915064,-500.0,0.00025058,2]
[311333555,1705063915074,-151.75,0.00025058,2]
[311333556,1705063915083,-604.12,0.00025058,2]
[311333557,1705063915092,-500.0,0.00025058,2]
[311333558,1705063915101,-500.0,0.00025058,2]
[311333559,1705063915111,-520.36043117,0.00025058,2]
[311333560,1705063915120,-500.0,0.00025058,2]
[311333561,1705063915130,-807.85,0.00025058,2]
[311333562,1705063915139,-500.0,0.00025058,2]
[311333563,1705063915149,-500.0,0.00025058,2]
[311333564,1705063915158,-500.0,0.00025058,2]
[311333565,1705063915168,-500.0,0.00025058,2]
[311333566,1705063915178,-599.59566466,0.00025058,2]
[311333567,1705063915189,-500.0,0.00025058,2]
[311333568,1705063915198,-500.0,0.00025058,2]
[311333569,1705063915209,-500.0,0.00025058,2]
[311333570,1705063915218,-500.0,0.00025058,2]
[311333571,1705063915227,-500.0,0.00025058,2]
[311333572,1705063915237,-500.0,0.00025058,2]
[311333573,1705063915247,-500.0,0.00025058,2]
[311333574,1705063915256,-547.95,0.00025058,2]
[311333575,1705063915265,-579.89,0.00025058,2]
[311333576,1705063915275,-500.0,0.00025058,2]
[311333577,1705063915285,-548.75,0.00025058,2]
[311333578,1705063915295,-412.94185265,0.00025058,2]
[311333579,1705063915304,-500.0,0.00025058,2]
[311333580,1705063915314,-1230.23,0.00025058,2]
[311333581,1705063915323,-500.0,0.00025058,2]
[311333582,1705063915332,-500.0,0.00025058,2]
[311333583,1705063915342,-1043.35,0.00025058,2]
[311333584,1705063915352,-500.0,0.00025058,2]
[311333585,1705063915360,-537.69,0.00025058,2]
[311333586,1705063915536,-304.38394633,0.00025058,2]
[311333587,1705063915545,-500.0,0.00025058,2]
[311333588,1705063915555,-500.0,0.00025058,2]
[311333589,1705063915565,-275.40457277,0.00025058,2]
[311333590,1705063915574,-500.0,0.00025058,2]
[311333591,1705063915583,-3508.3,0.00025058,2]
[311333592,1705063915596,-500.0,0.00025058,2]
[311333593,1705063915606,-619.56,0.00025058,2]
[311333594,1705063915615,-939.84,0.00025058,2]
[311333595,1705063915626,-500.0,0.00025058,2]
[311333596,1705063915635,-2401.03,0.00025058,5]
[311333597,1705063915644,-500.0,0.00025058,2]
[311333598,1705063915654,-505.5,0.00025058,2]
[311333599,1705063915663,-500.0,0.00025058,2]
[311333600,1705063915673,-1105.06,0.00025058,2]
[311333601,1705063915683,-522.95,0.00025058,2]
[311333602,1705063915692,-500.0,0.00025058,2]
[311333603,1705063915701,-1354.24,0.00025058,2]
[311333604,1705063915712,-190.77822776,0.00025058,2]
[311333605,1705063915721,-500.0,0.00025058,2]
[311333606,1705063915730,-500.0,0.00025058,2]
[311333607,1705063915739,-500.0,0.00025058,2]
[311333608,1705063915748,-500.0,0.00025058,2]
[311333609,1705063915758,-500.0,0.00025058,2]
[311333610,1705063915767,-1368.86,0.00025058,2]
[311333611,1705063915776,-500.0,0.00025058,2]
[311333612,1705063915787,-772.0,0.00025058,2]
[311333613,1705063915797,-500.0,0.00025058,2]
[311333614,1705063915807,-637.74327181,0.00025058,2]
[311333615,1705063915817,-1064.54,0.00025058,2]
[311333616,1705063915826,-705.07,0.00025058,2]
[311333617,1705063915836,-660.22,0.00025058,2]
[311333618,1705063915846,-500.0,0.00025058,2]
[311333619,1705063915855,-608.43,0.00025058,2]
[311333620,1705063915864,-917.47,0.00025058,2]
[311333621,1705063915874,-500.0,0.00025058,2]
[311333622,1705063915883,-1227.15,0.00025058,2]
[311333623,1705063915892,-500.0,0.00025058,2]
[311333624,1705063915901,-500.0,0.00025058,2]
[311333625,1705063915910,-500.0,0.00025058,2]
[311333626,1705063915919,-873.32,0.00025058,2]
[311333627,1705063915928,-3542.34,0.00025058,2]
[311333628,1705063915938,-500.0,0.00025058,2]
[311333629,1705063915947,-2030.8,0.00025058,2]
[311333630,1705063915957,-804.67,0.00025058,2]
[311333631,1705063915967,-500.0,0.00025058,2]
[311333632,1705063915977,-751.35,0.00025058,2]
[311333633,1705063915987,-500.0,0.00025058,2]
[311333634,1705063915997,-681.41,0.00025058,2]
[311333635,1705063916006,-1040.93,0.00025058,2]
[311333636,1705063916015,-550.77,0.00025058,2]
[311333637,1705063916025,-568.41,0.00025058,2]
[311333638,1705063916035,-500.0,0.00025058,2]
[311333639,1705063916045,-500.0,0.00025058,2]